fUST/lending_fUST_20240924
["ID","MTS","AMOUNT","RATE_DAILY","PERIOD"]
[339031293,1727143847065,-151.0,0.00034657,14]
[339031294,1727143847074,-151.0,0.00034657,14]
[339031295,1727143847083,-500.0,0.00034662,2]
[339031296,1727143847093,-500.0,0.00034774,2]
[339031297,1727143847102,-1328.95521488,0.0003478,2]
[339031298,1727143847112,-1000.0,0.000348,3]
[339031299,1727143847121,-1000.0,0.000348,3]
[339031300,1727143847131,-1000.0,0.000348,3]
[339031301,1727143847140,-227.8,0.00034925,7]
[339031302,1727143847150,-151.0,0.00034931,14]
[339031303,1727143847159,-196.81977,0.00034931,14]
[339031304,1727143847168,-196.81977,0.00034931,14]
[339031305,1727143847177,-500.0,0.00034934,2]
[339031306,1727143847189,-1574.97939837,0.0003499,5]
[339031307,1727143847198,-1683.37,0.00035,14]
[339031308,1727143847207,-2870.53,0.00035,14]
[339031309,1727143847217,-1100.18,0.00035,14]
[339031310,1727143847226,-992.95914564,0.00035,2]
[339031311,1727143847236,-500.0,0.00035068,34]
[339031312,1727143847245,-169.832,0.00035095,2]
[339031313,1727143847253,-150.288,0.00035095,2]
[339031314,1727143847264,-152.977,0.00035095,2]
[339031315,1727143847274,-150.0,0.00035095,2]
[339031316,1727143847283,-251.131,0.00035095,2]
[339031317,1727143847293,-525.0,0.00035095,2]
[339031318,1727143847302,-150.847,0.00035095,2]
[339031319,1727143847314,-1217.0,0.00035095,2]
[339031320,1727143847331,-2287.82723504,0.000351,120]
[339031321,1727143847341,-300.0,0.000351,2]
[339031322,1727143847350,-792.97988223,0.000351,2]
[339031323,1727143847359,-513.95370406,0.000351,2]
[339031324,1727143847368,-290.86053688,0.000351,2]
[339031325,1727143847378,-959.47876016,0.000351,120]
[339031326,1727143847386,-320.23139597,0.000351,2]
[339031327,1727143847395,-1184.62806174,0.000351,2]
[339031328,1727143847404,-285.73134639,0.000351,2]
[339031329,1727143847414,-163.09635664,0.000351,2]
[339031330,1727143847423,-1145.87817124,0.000351,2]
[339031331,1727143847433,-154.25112576,0.000351,2]
[339031332,1727143847442,-1237.83797049,0.000351,2]
[339031333,1727143847453,-223.23885304,0.000351,2]
[339031334,1727143847462,-437.03675903,0.000351,2]
[339031335,1727143847472,-184.20550046,0.000351,2]
[339031336,1727143847481,-1018.28169587,0.000351,2]
[339031337,1727143847491,-904.41779962,0.000351,2]
[339031338,1727143847500,-175.37377944,0.000351,2]
[339031339,1727143847509,-458.34026218,0.000351,2]
[339031340,1727143847519,-222.39103591,0.000351,2]
[339031341,1727143847528,-886.319,0.000351,2]
[339031342,1727143847537,-344.10192921,0.000351,2]
[339031343,1727143847546,-863.585956,0.000351,35]
[339031344,1727143847561,-1000.0,0.000351,120]
[339031345,1727143847571,-500.0,0.000351,120]
[339031346,1727143847580,-500.0,0.000351,120]
[339031347,1727143847589,-500.0,0.000351,120]
[339031348,1727143847599,-500.0,0.000351,120]
[339031349,1727143847607,-500.0,0.000351,120]
[339031350,1727143847617,-500.0,0.000351,120]
[339031351,1727143847626,-500.0,0.000351,120]
[339031352,1727143847634,-500.0,0.000351,120]
[339031353,1727143847643,-500.0,0.000351,120]
[339031354,1727143847653,-500.0,0.000351,120]
[339031355,1727143847662,-500.0,0.000351,120]
[339031356,1727143847671,-500.0,0.000351,120]
[339031357,1727143847680,-500.0,0.000351,120]
[339031358,1727143847690,-500.0,0.000351,120]
[339031359,1727143847699,-465.73713105,0.000351,120]
[339031429,1727144468120,343.66,0.00022001,2]
[339031435,1727144672122,4650.0,0.00022001,2]
[339031440,1727144826281,-501.07484227,0.00025,30]
[339031441,1727144826303,-167.220186,0.00026437,2]
[339031442,1727144826324,-250.0,0.00027053,2]
[339031443,1727144826345,-413.0319121,0.00027124,2]
[339031444,1727144826368,-162.000049,0.00027139,2]
[339031445,1727144826388,-196.43896982,0.00027197,2]
[339031446,1727144826411,-162.000049,0.00027247,2]
[339031447,1727144826431,-1472.76058607,0.00027279,2]
[339031448,1727144837138,-399.08372163,0.00027279,2]
[339031449,1727144838139,-1385.481957,0.00027279,2]
[339031450,1727144838171,-184.49341041,0.00027297,2]
[339031451,1727144838200,-162.000049,0.00027356,2]
[339031452,1727144838230,-300.0,0.00027369,2]
[339031453,1727144838262,-300.0,0.00027369,2]
[339031454,1727144838289,-915.6556512,0.0002737,2]
[339031455,1727144849095,-965.22628371,0.00025,30]
[339031456,1727144849122,-186.27911438,0.0002737,2]
[339031457,1727144857717,1583.71430863,0.000218,2]
[339031458,1727144889231,878.05825267,0.000167,2]
[339031461,1727144953137,-254.04,0.00023799,2]
[339031462,1727144953157,-500.0,0.00024,2]
[339031463,1727144959273,-878.47329858,0.00025,5]
[339031516,1727145032694,-121.52670142,0.00025,5]
[339031517,1727145032704,-601.87369496,0.0002509,2]
[339031518,1727145032714,-500.0,0.000256,2]
[339031519,1727145032724,-500.0,0.000256,2]
[339031520,1727145032733,-272.20171534,0.000256,2]
[339031521,1727145032742,-380.0,0.00026928,2]
[339031522,1727145032752,-18642.05487248,0.00027178,2]
[339031523,1727145032765,-5073.96656094,0.00027178,2]
[339031558,1727145040702,-500.0,0.00027177,2]
[339031560,1727145040712,-359.75871325,0.00027177,2]
[339031562,1727145040722,-1183.97856658,0.00027178,2]
[339031564,1727145040731,-1898.06523442,0.0002737,2]
[339031566,1727145040741,-347.32803,0.00027397,2]
[339031568,1727145040750,-162.000049,0.00027465,2]
[339031570,1727145040760,-162.000049,0.00027574,2]
[339031572,1727145040769,-462.280287,0.00027601,2]
[339031574,1727145040778,-162.000049,0.00027683,2]
[339031576,1727145040788,-162.000049,0.00027791,2]
[339031578,1727145040798,-162.000049,0.000279,2]
[339031580,1727145040808,-162.000049,0.00028009,2]
[339031582,1727145040818,-162.000049,0.00028118,2]
[339031584,1727145040827,-162.000049,0.00028227,2]
[339031585,1727145040836,-162.000049,0.00028335,2]
[339031587,1727145040846,-162.000049,0.00028444,2]
[339031588,1727145040855,-162.000049,0.00028553,2]
[339031589,1727145040865,-162.553841,0.00029582,2]
[339031590,1727145040874,-300.0,0.0002968,2]
[339031591,1727145040884,-300.0,0.0002968,2]
[339031592,1727145040893,-184.49341041,0.00029785,2]
[339031593,1727145040903,-30085.20369641,0.0003,7]
[339031594,1727145040912,-203.0,0.0003,2]
[339031595,1727145040921,-167.220186,0.00030041,2]
[339031596,1727145040931,-186.66097608,0.0003065,2]
[339031597,1727145040943,-158.386,0.00031209,28]
[339031598,1727145040953,-420.0,0.00031999,2]
[339031599,1727145040962,-2000.0,0.00032,2]
[339031600,1727145040971,-2394.10276193,0.00032,4]
[339031601,1727145040981,-420.0,0.00032648,2]
[339031602,1727145040990,-151.0,0.00032667,6]
[339031603,1727145041000,-3000.0,0.000328,13]
[339031604,1727145041010,-3000.0,0.0003281,13]
[339031605,1727145041129,-500.0,0.00032819,2]
[339031606,1727145041140,-345.52102767,0.00032819,2]
[339031607,1727145041149,-500.0,0.00032819,2]
[339031608,1727145041159,-487.84074878,0.00032819,2]
[339031609,1727145041167,-167.14848449,0.00032819,2]
[339031610,1727145041177,-391.10174134,0.00032819,2]
[339031611,1727145041186,-500.0,0.00032819,2]
[339031612,1727145041196,-500.0,0.00032819,2]
[339031613,1727145041206,-500.0,0.00032819,2]
[339031614,1727145041215,-500.0,0.00032819,2]
[339031615,1727145041224,-500.0,0.00032819,2]
[339031616,1727145041233,-500.0,0.00032819,2]
[339031617,1727145041242,-3000.0,0.0003282,13]
[339031618,1727145041251,-3000.0,0.0003283,13]
[339031619,1727145041261,-3000.0,0.0003284,13]
[339031620,1727145041270,-3000.0,0.0003285,13]
[339031621,1727145041279,-3000.0,0.0003286,13]
[339031622,1727145041288,-985.76,0.00032867,3]
[339031623,1727145041297,-821.47,0.0003287,3]
[339031624,1727145041307,-3000.0,0.0003287,13]
[339031625,1727145041316,-500.0,0.00032876,30]
[339031626,1727145041325,-500.0,0.00032877,2]
[339031627,1727145041334,-500.0,0.00032877,2]
[339031628,1727145041343,-500.0,0.00032877,2]
[339031629,1727145041352,-500.0,0.00032877,2]
[339031630,1727145041363,-445.84866945,0.00032877,2]
[339031631,1727145041372,-3000.0,0.0003288,13]
[339031632,1727145041382,-218.31532699,0.0003288,2]
[339031633,1727145041391,-1319.5621331,0.00032889,4]
[339031634,1727145041400,-314.99587966,0.00032889,5]
[339031635,1727145041410,-3000.0,0.0003289,13]
[339031636,1727145041420,-3000.0,0.000329,13]
[339031637,1727145041429,-3000.0,0.0003291,13]
[339031638,1727145041438,-151.0,0.00032918,2]
[339031639,1727145041447,-3000.0,0.0003292,13]
[339031640,1727145041456,-3000.0,0.0003293,14]
[339031641,1727145041465,-3000.0,0.0003294,14]
[339031642,1727145041475,-3000.0,0.0003295,14]
[339031643,1727145041484,-3000.0,0.0003296,14]
[339031644,1727145041493,-3000.0,0.0003297,14]
[339031645,1727145041502,-3000.0,0.0003298,14]
[339031646,1727145041512,-3000.0,0.0003299,14]
[339031647,1727145041522,-3000.0,0.00033,14]
[339031648,1727145041531,-903.60712108,0.00033,2]
[339031649,1727145041540,-231.80639772,0.00033,30]
[339031650,1727145041549,-203.0,0.00033,2]
[339031651,1727145041558,-3000.0,0.0003301,14]
[339031652,1727145041568,-3000.0,0.0003302,14]
[339031653,1727145041580,-1319.5621331,0.0003302,5]
[339031654,1727145041590,-314.99587966,0.0003302,5]
[339031655,1727145041600,-3000.0,0.0003303,14]
[339031656,1727145041609,-3000.0,0.0003304,14]
[339031657,1727145041619,-2660.49909955,0.0003305,14]
[339031685,1727145044652,-339.50090045,0.0003305,14]
[339031686,1727145044662,-3000.0,0.0003306,14]
[339031687,1727145044672,-3000.0,0.0003307,14]
[339031688,1727145044681,-3000.0,0.0003308,14]
[339031689,1727145044691,-3000.0,0.0003309,14]
[339031690,1727145044700,-3916.780539,0.000331,14]
[339031691,1727145044709,-347.32803,0.00033165,2]
[339031692,1727145044718,-500.0,0.00033424,31]
[339031693,1727145044728,-219.11011866,0.0003365,29]
[339031716,1727145046761,-18.22106886,0.0003365,29]
[339031718,1727145046773,-28.66881248,0.0003365,29]
[339031720,1727145046782,-151.0,0.00033796,7]
[339031722,1727145046792,-500.0,0.00033972,32]
[339031725,1727145046802,-575.83118752,0.000341,2]
[339031871,1727145795382,2851.86,0.00022001,2]
[339031873,1727145957147,-302.39527296,0.00024,2]
[339031874,1727145957168,-302.39527296,0.0002424,2]
[339031875,1727145957189,-302.39527296,0.0002448,2]
[339031876,1727145957211,-431.06845495,0.0002472,2]
[339031877,1727145957231,-199.04,0.00025,5]
[339031878,1727145957251,-347.328031,0.00027397,2]
[339031879,1727145957275,-290.16465558,0.00029,37]
[339031880,1727146032105,-1941.78100886,0.00029,37]
[339031881,1727146048094,-768.05433556,0.00029,37]
[339031882,1727146048117,-151.0,0.0003,120]
[339031883,1727146048138,-151.0,0.0003,120]
[339031884,1727146048159,-196.01906934,0.0003,3]
[339031885,1727146049118,-188.83423054,0.0003,3]
[339031886,1727146049142,-164.743728,0.00030167,2]
[339031887,1727146049163,-230.27755334,0.00030196,2]
[339031888,1727146050166,-169.72244666,0.00030196,2]
[339031889,1727146050188,-400.0,0.00030196,2]
[339031890,1727146050208,-791.32731202,0.00030197,2]
[339031891,1727146057016,-2208.67268798,0.00030197,2]
[339031892,1727146057040,-159.455612,0.00030357,2]
[339031893,1727146057062,-403.391452,0.00030394,2]
[339031894,1727146057085,-250.0,0.00030473,2]
[339031895,1727146057108,-168.0,0.00030501,2]
[339031896,1727146057131,-357.37527157,0.00030501,2]
[339031951,1727146232032,-167.3880454,0.00029665,2]
[339031953,1727146232042,-109.29307345,0.00030433,2]
[339032043,1727146239895,-400.0,0.000305,2]
[339032044,1727146239906,-400.0,0.000305,2]
[339032045,1727146239915,-216.03250839,0.000305,2]
[339032046,1727146239924,-500.0,0.000305,2]
[339032047,1727146239934,-154.0,0.00030501,2]
[339032048,1727146239945,-24542.62472843,0.00030501,2]
[339032049,1727146239955,-159.455612,0.00030533,2]
[339032050,1727146239964,-159.455612,0.00030709,2]
[339032051,1727146239973,-159.455612,0.00030885,2]
[339032052,1727146239982,-159.455612,0.0003106,2]
[339032053,1727146239994,-159.455612,0.00031236,2]
[339032054,1727146240003,-159.455612,0.00031412,2]
[339032055,1727146240012,-151.0,0.00031489,5]
[339032056,1727146240023,-159.455612,0.00031588,2]
[339032057,1727146240033,-159.455612,0.00031763,2]
[339032058,1727146240042,-159.455612,0.00031939,2]
[339032059,1727146240052,-151.0,0.00032623,6]
[339032060,1727146240061,-158.38760673,0.00032636,33]
[339032062,1727146240071,-794.31197326,0.0003271,2]
[339032065,1727146240158,-3000.0,0.000328,13]
[339032066,1727146240192,-3000.0,0.0003281,13]
[339032067,1727146240202,-3000.0,0.0003282,13]
[339032068,1727146240211,-3000.0,0.0003283,13]
[339032069,1727146240220,-3000.0,0.0003284,13]
[339032070,1727146240230,-3000.0,0.0003285,13]
[339032071,1727146240239,-560.0,0.00032856,2]
[339032072,1727146240248,-3000.0,0.0003286,13]
[339032073,1727146240257,-172.31696989,0.00032869,2]
[339032074,1727146240266,-3000.0,0.0003287,13]
[339032075,1727146240275,-500.0,0.00032876,30]
[339032076,1727146240284,-500.0,0.00032877,2]
[339032077,1727146240294,-500.0,0.00032877,2]
[339032078,1727146240303,-500.0,0.00032877,2]
[339032079,1727146240312,-500.0,0.00032877,2]
[339032080,1727146240321,-445.84866945,0.00032877,2]
[339032081,1727146240331,-3000.0,0.0003288,13]
[339032082,1727146240340,-3000.0,0.0003289,13]
[339032083,1727146240351,-3000.0,0.000329,13]
[339032084,1727146240361,-3000.0,0.0003291,13]
[339032085,1727146240370,-151.0,0.00032918,2]
[339032086,1727146240379,-3000.0,0.0003292,13]
[339032087,1727146240389,-241.86471937,0.00032929,7]
[339032088,1727146240398,-623.77121894,0.00032929,7]
[339032089,1727146240407,-500.0,0.00032929,7]
[339032090,1727146240416,-500.0,0.00032929,7]
[339032091,1727146240426,-500.0,0.00032929,7]
[339032092,1727146240435,-500.0,0.00032929,7]
[339032093,1727146240445,-291.48852414,0.00032929,7]
[339032094,1727146240455,-500.0,0.00032929,7]
[339032095,1727146240464,-380.55321,0.00032929,2]
[339032096,1727146240474,-3000.0,0.0003293,14]
[339032097,1727146240483,-3000.0,0.0003294,14]
[339032098,1727146240494,-3000.0,0.0003295,14]
[339032099,1727146240503,-5660.499099,0.0003296,14]
[339032100,1727146240512,-251.76700123,0.000331,14]
[339032101,1727146240522,-38.74025021,0.00033165,2]
[339032102,1727146240535,-308.58778079,0.00033165,2]
[339032103,1727146240544,-151.0,0.00033342,120]
[339032104,1727146240554,-500.0,0.00033424,31]
[339032105,1727146240564,-805.52119167,0.000335,120]
[339032106,1727146240573,-154.0,0.00033501,2]
[339032107,1727146240582,-154.0,0.00033501,2]
[339032108,1727146240591,-669.2,0.0003354,3]
[339032109,1727146240601,-560.0,0.0003355,2]
[339032110,1727146240610,-151.0,0.00033757,7]
[339032111,1727146240619,-500.0,0.00033972,32]
[339032112,1727146240629,-794.31197321,0.00034023,2]
[339032113,1727146240638,-500.0,0.00034079,2]
[339032114,1727146240648,-684.55,0.0003409,3]
[339032115,1727146240657,-570.46,0.0003409,3]
[339032116,1727146240666,-1055.42,0.000341,2]
[339032117,1727146240675,-272.4107815,0.000341,2]
[339032118,1727146240684,-500.0,0.000342,5]
[339032119,1727146240693,-500.0,0.000342,5]
[339032120,1727146240702,-306.0,0.00034207,2]
[339032121,1727146240712,-500.0,0.0003452,33]
[339032122,1727146240721,-151.0,0.00034603,120]
[339032123,1727146240730,-218.31532699,0.00034628,2]
[339032124,1727146240740,-35188.3235496,0.00034728,5]
[339032125,1727146240749,-299.24608565,0.00034728,5]
[339032126,1727146240758,-754.37528945,0.00034748,5]
[339032127,1727146240767,-893.73304433,0.00034748,5]
[339032128,1727146240777,-500.0,0.00034773,5]
[339032129,1727146240786,-500.0,0.00034773,5]
[339032130,1727146240795,-151.0,0.00034891,7]
[339032131,1727146240804,-5000.0,0.00035,30]
[339032132,1727146240813,-500.0,0.00035068,34]
[339032133,1727146240822,-500.0,0.00035073,5]
[339032134,1727146240831,-501.36625707,0.00035073,5]
[339032135,1727146240840,-3094.81845764,0.0003508,30]
[339032136,1727146240849,-202.94,0.00035095,14]
[339032137,1727146240859,-2757.7932838,0.00035095,120]
[339032138,1727146240868,-300.0,0.00035095,2]
[339032139,1727146240878,-793.25045346,0.00035095,2]
[339032140,1727146240887,-514.12906929,0.00035095,2]
[339032141,1727146240896,-290.95978882,0.00035095,2]
[339032142,1727146240905,-335.48030704,0.00035095,120]
[339032162,1727146243725,-251.73902,0.00027,120]
[339032164,1727146243735,-500.0,0.00032876,30]
[339032166,1727146243745,-500.0,0.00033424,31]
[339032168,1727146243754,-500.0,0.00033972,32]
[339032170,1727146243764,-500.0,0.0003452,33]
[339032172,1727146243774,-321.4207342,0.00035068,34]
[339032174,1727146243783,-624.94402008,0.00035095,120]
[339032175,1727146243793,-320.34066155,0.00035095,2]
[339032176,1727146243803,-285.82884133,0.00035095,2]
[339032177,1727146243812,-1185.03227084,0.00035095,2]
[339032178,1727146243823,-163.15200629,0.00035095,2]
[339032179,1727146243833,-1147.17678849,0.00035095,2]
[339032180,1727146243843,-154.30375864,0.00035095,2]
[339032181,1727146243852,-1238.26033282,0.00035095,2]
[339032182,1727146243862,-223.31502699,0.00035095,2]
[339032183,1727146243872,-185.0138835,0.00035095,2]
[339032184,1727146243882,-437.18588385,0.00035095,2]
[339032185,1727146243891,-1018.62915952,0.00035095,2]
[339032186,1727146243901,-904.72641,0.00035095,2]
[339032187,1727146243911,-175.43362159,0.00035095,2]
[339032188,1727146243920,-458.49666166,0.00035095,2]
[339032189,1727146243930,-222.4668995,0.00035095,2]
[339032190,1727146243941,-886.319,0.00035095,2]
[339032191,1727146243951,-500.0,0.00035095,120]
[339032192,1727146243960,-500.0,0.00035095,120]
[339032193,1727146243969,-500.0,0.00035095,120]
[339032194,1727146243980,-500.0,0.00035095,120]
[339032195,1727146243990,-500.0,0.00035095,120]
[339032196,1727146244000,-500.0,0.00035095,120]
[339032197,1727146244009,-500.0,0.00035095,120]
[339032198,1727146244020,-500.0,0.00035095,120]
[339032199,1727146244140,-383.06316271,0.00035095,120]
[339032200,1727146244150,-500.0,0.00035095,120]
[339032201,1727146244159,-500.0,0.00035095,120]
[339032202,1727146244168,-500.0,0.00035095,120]
[339032203,1727146244177,-500.0,0.00035095,120]
[339032204,1727146244187,-500.0,0.00035095,120]
[339032205,1727146244196,-160.37655092,0.00035095,120]
[339032206,1727146244205,-150.01,0.00035099,2]
[339032207,1727146244215,-1733.90974643,0.00035099,2]
[339032250,1727146245878,-1081.6788426,0.00035099,2]
[339032252,1727146245888,-177.026159,0.000351,2]
[339032254,1727146245897,-1000.0,0.00035321,5]
[339032255,1727146245907,-259.2749984,0.00035321,5]
[339032276,1727147147164,-271.52705157,0.00024,2]
[339032277,1727147151107,-30.89840056,0.00024,2]
[339032278,1727147151129,-302.42545213,0.0002424,2]
[339032279,1727147151152,-314.33630969,0.0002448,2]
[339032280,1727147151174,-251.13286,0.00027,120]
[339032281,1727147151197,-347.328031,0.00027397,2]
[339032282,1727147151219,-57.29125409,0.00029441,2]
[339032288,1727147230146,-500.0,0.000257,2]
[339032289,1727147230167,-177.10887055,0.000257,2]
[339032290,1727147230188,-144.40447191,0.00029441,2]
[339032291,1727147230209,-569.6005512,0.00029713,2]
[339032292,1727147230229,-151.0,0.0003,120]
[339032293,1727147230250,-151.0,0.0003,120]
[339032294,1727147230271,-166.666666,0.00031933,2]
[339032295,1727147230292,-164.124913,0.0003225,2]
[339032296,1727147230312,-291.67456699,0.00032328,2]
[339032297,1727147230332,-291.67456699,0.00032332,2]
[339032298,1727147230353,-291.67456699,0.00032336,2]
[339032299,1727147230374,-164.124913,0.00032343,2]
[339032300,1727147230396,-400.0,0.00032427,2]
[339032301,1727147230416,-58.03827282,0.00032427,2]
[339032302,1727147234226,-341.96172718,0.00032427,2]
[339032303,1727147234247,-189.0,0.00032428,2]
[339032304,1727147234269,-609.66526848,0.00032428,2]
[339032305,1727147235099,-2576.94919337,0.00032428,2]
[339032306,1727147252114,-1021.11909909,0.00032428,2]
[339032307,1727147253126,-1151.20422962,0.00032428,2]
[339032331,1727147432088,-166.666666,0.00030681,2]
[339032334,1727147432098,-24900.0,0.00031191,2]
[339032337,1727147432108,-500.0,0.000312,5]
[339032339,1727147432117,-1206.59290158,0.00032266,14]
[339032341,1727147432127,-620.9517311,0.00032328,2]
[339032344,1727147432136,-400.0,0.00032427,2]
[339032347,1727147432146,-400.0,0.00032427,2]
[339032350,1727147432156,-168.0,0.00032428,2]
[339032353,1727147432166,-796.9525873,0.00032428,2]
[339032356,1727147432175,-164.124913,0.00032436,2]
[339032359,1727147432185,-162.569009,0.00032463,2]
[339032361,1727147432194,-501.36625707,0.00032473,5]
[339032363,1727147432203,-66.43983651,0.00032473,5]
[339032395,1727147440208,-433.56016349,0.00032473,5]
[339032396,1727147440226,-500.0,0.00032473,5]
[339032397,1727147440242,-171.51958008,0.00032473,5]
[339032398,1727147440253,-164.124913,0.0003253,2]
[339032399,1727147440264,-164.124913,0.00032623,2]
[339032400,1727147440275,-164.124913,0.00032716,2]
[339032401,1727147440289,-150.479018,0.000328,2]
[339032402,1727147440304,-150.0,0.000328,13]
[339032403,1727147440317,-164.124913,0.0003281,2]
[339032404,1727147440328,-500.0,0.00032873,5]
[339032405,1727147440344,-500.0,0.00032876,30]
[339032406,1727147440357,-271.76096327,0.00032877,2]
[339032407,1727147440368,-22990.48,0.0003288,7]
[339032408,1727147440380,-1002.093521,0.000329,16]
[339032409,1727147440393,-164.124913,0.00032903,2]
[339032410,1727147440408,-254.88766846,0.00032918,2]
[339032411,1727147440421,-164.124913,0.00032997,2]
[339032412,1727147440434,-159.0,0.00033,2]
[339032413,1727147440447,-535.0,0.00033,2]
[339032414,1727147440460,-961.34111712,0.00033021,5]
[339032415,1727147440472,-164.124913,0.0003309,2]
[339032416,1727147440484,-159.0,0.00033151,2]
[339032417,1727147440496,-535.0,0.00033151,2]
[339032418,1727147440511,-347.328031,0.00033165,2]
[339032419,1727147440523,-164.124913,0.00033183,2]
[339032420,1727147440535,-164.124913,0.00033277,2]
[339032421,1727147440547,-151.0,0.00033342,120]
[339032422,1727147440559,-164.124913,0.0003337,2]
[339032423,1727147440571,-1000.0,0.000334,16]
[339032424,1727147440583,-1001.26966975,0.00033421,5]
[339032425,1727147440595,-500.0,0.00033424,31]
[339032426,1727147440607,-535.0,0.00033425,2]
[339032427,1727147440618,-164.124913,0.00033463,2]
[339032428,1727147440633,-164.124913,0.00033557,2]
[339032429,1727147440644,-164.124913,0.0003365,2]
[339032430,1727147440655,-535.0,0.00033699,2]
[339032431,1727147440667,-164.124913,0.00033744,2]
[339032432,1727147440684,-151.0,0.00033757,7]
[339032433,1727147440697,-164.124913,0.00033837,2]
[339032434,1727147440711,-1000.0,0.000339,16]
[339032435,1727147440722,-164.124913,0.0003393,2]
[339032436,1727147440735,-500.0,0.00033972,32]
[339032437,1727147440747,-535.0,0.00033973,2]
[339032438,1727147440759,-500.0,0.00034173,5]
[339032439,1727147440771,-1070.42,0.000342,2]
[339032440,1727147440783,-1000.0,0.000344,16]
[339032441,1727147440794,-500.0,0.0003452,33]
[339032442,1727147440805,-159.0,0.00034521,2]
[339032443,1727147440819,-535.0,0.00034521,2]
[339032444,1727147440830,-893.73304433,0.00034721,5]
[339032445,1727147440841,-560.0,0.00034861,2]
[339032446,1727147440853,-151.0,0.00034892,7]
[339032447,1727147440865,-1000.0,0.000349,16]
[339032448,1727147440879,-151.0,0.00035014,120]
[339032449,1727147440890,-436.63985326,0.00035095,7]
[339032450,1727147440901,-169.30530356,0.00035095,7]
[339032451,1727147440913,-500.0,0.00035095,7]
[339032452,1727147440925,-500.0,0.00035095,7]
[339032453,1727147440938,-500.0,0.00035095,7]
[339032454,1727147440950,-454.0419669,0.00035095,7]
[339032455,1727147440960,-4999.999999,0.00035096,120]
[339032456,1727147441107,-202.94,0.00035096,14]
[339032457,1727147441125,-335.0,0.00035096,120]
[339032458,1727147441137,-150.01,0.00035099,2]
[339032459,1727147441146,-2111.69144178,0.00035099,2]
[339032460,1727147441156,-411.8657486,0.00035425,2]
[339032461,1727147441165,-153.0,0.00035425,2]
[339032462,1727147441175,-168.0,0.00035428,2]
[339032463,1727147441184,-168.0,0.00035428,2]
[339032464,1727147441193,-500.0,0.00035437,2]
[339032465,1727147441203,-169.832,0.0003544,2]
[339032466,1727147441212,-150.288,0.0003544,2]
[339032467,1727147441222,-152.977,0.0003544,2]
[339032468,1727147441231,-591.703,0.00035495,2]
[339032469,1727147441240,-150.0,0.0003554,2]
[339032470,1727147441249,-251.131,0.0003554,2]
[339032471,1727147441258,-525.0,0.0003554,2]
[339032472,1727147441267,-154.334,0.0003554,2]
[339032473,1727147441277,-1286.69,0.0003554,2]
[339032474,1727147441286,-630.0,0.000356,120]
[339032475,1727147441295,-625.0,0.000356,2]
[339032476,1727147441304,-400.0,0.00035616,2]
[339032477,1727147441313,-479.021764,0.00035616,120]
[339032478,1727147441322,-560.0,0.00035669,2]
[339032479,1727147441332,-212.26239792,0.00035689,2]
[339032485,1727147443760,-287.73760208,0.00035689,2]
[339032486,1727147443771,-500.0,0.00035909,2]
[339032487,1727147443780,-630.0,0.00036,120]
[339032488,1727147443789,-3600.79845764,0.00036,30]
[339032489,1727147443799,-500.0,0.00036014,2]
[339032490,1727147443809,-151.0,0.00036026,15]
[339032491,1727147443819,-500.0,0.00036028,2]
[339032492,1727147443828,-336.5,0.00036096,3]